bitfinex-derivatives/quotes_BTCF0:USTF0_20250827
["timestamp","ask_amount","ask_price","bid_price","bid_amount"]
[1756303884245,0.1071913,111640.0,111630.0,1.68791393]
[1756303884448,0.1071913,111640.0,111630.0,2.20545313]
[1756303885655,0.01763,111640.0,111630.0,1.95545313]
[1756303885957,0.1256387,111650.0,111640.0,0.0895613]
[1756303886256,0.1256387,111650.0,111640.0,0.9679005]
[1756303886954,0.1256387,111650.0,111640.0,0.8783392]
[1756303887158,0.1432687,111650.0,111640.0,0.4503613]
[1756303887656,0.1452687,111650.0,111640.0,0.4503613]
[1756303887859,0.1986887,111650.0,111640.0,0.5064113]
[1756303889258,0.2006887,111650.0,111640.0,0.5064113]
[1756303891565,0.2006887,111650.0,111640.0,0.5635113]
[1756303893058,0.2383287,111650.0,111640.0,0.5635113]
[1756303894250,0.2383287,111650.0,111640.0,1.0810505]
[1756303895450,0.10858,111650.0,111640.0,1.3310505]
[1756303895657,0.0895505,111660.0,111650.0,0.0895532]
[1756303895857,0.0895505,111660.0,111650.0,1.8377324]
[1756303896258,0.0895505,111660.0,111650.0,0.9678924]
[1756303896465,0.1151005,111660.0,111650.0,1.8376924]
[1756303897759,0.1151005,111660.0,111650.0,2.0876924]
[1756303897959,0.1008223,111670.0,111660.0,0.0895452]
[1756303898162,0.1008223,111670.0,111660.0,0.9678844]
[1756303898362,0.01128,111670.0,111660.0,0.9678844]
[1756303898866,0.1008172,111670.0,111660.0,0.9678844]
[1756303899363,0.1008172,111670.0,111660.0,1.8374044]
[1756303899966,0.1008172,111670.0,111660.0,1.3574852]
[1756303900568,0.1008172,111670.0,111660.0,1.3584852]
[1756303901158,0.1008172,111670.0,111660.0,1.0065044]
[1756303901356,0.1008172,111670.0,111660.0,1.8758244]
[1756303901663,0.1008172,111670.0,111660.0,1.8768244]
[1756303902866,0.0895372,111670.0,111660.0,1.9110544]
[1756303903767,0.15097498,111680.0,111670.0,0.1364972]
[1756303903768,0.15097488,111680.0,111670.0,0.1364972]
[1756303903958,0.15097488,111680.0,111670.0,1.0148364]
[1756303904370,0.1307348,111680.0,111670.0,1.03289392]
[1756303904960,0.0412,111680.0,111670.0,1.03289392]
[1756303905171,0.1307292,111680.0,111670.0,1.03289392]
[1756303905359,0.1307292,111680.0,111670.0,1.90189392]
[1756303907473,0.1307292,111680.0,111670.0,1.90289392]
[1756303908371,0.1307292,111680.0,111670.0,1.90489392]
[1756303909078,0.1307292,111680.0,111670.0,1.90589392]
[1756303910067,0.1307292,111680.0,111670.0,1.03689392]
[1756303910272,0.1829492,111680.0,111670.0,1.29833752]
[1756303910473,0.4523192,111680.0,111670.0,1.29833752]
[1756303910661,0.9698584,111680.0,111670.0,0.42981752]
[1756303910860,0.4523192,111680.0,111670.0,0.42981752]
[1756303911874,0.4523192,111680.0,111670.0,0.42881752]
[1756303912172,0.8131192,111680.0,111670.0,0.06801752]
[1756303912668,0.8131192,111680.0,111670.0,0.06901752]
[1756303912669,0.4523192,111680.0,111670.0,0.06901752]
[1756303912971,0.4523192,111680.0,111670.0,0.07101752]
[1756303913177,0.2023192,111680.0,111670.0,0.07101752]
[1756303914069,0.2023192,111680.0,111670.0,0.06801752]
[1756303914374,0.2023192,111680.0,111670.0,0.15555472]
[1756303914562,0.2023192,111680.0,111670.0,0.15755472]
[1756303914770,0.2023192,111680.0,111670.0,1.03589392]
[1756303915276,0.2023192,111680.0,111670.0,1.03389392]
[1756303915474,0.11279,111680.0,111670.0,1.03289392]
[1756303915664,0.11279,111680.0,111670.0,1.03489392]
[1756303915864,0.2023192,111680.0,111670.0,1.03689392]
[1756303916171,0.2023192,111680.0,111670.0,1.03989392]
[1756303917177,0.11279,111680.0,111670.0,1.03989392]
[1756303917575,0.11279,111680.0,111670.0,1.03789392]
[1756303917776,0.11279,111680.0,111670.0,1.09481392]
[1756303918379,0.2023192,111680.0,111670.0,1.09481392]
[1756303918878,0.2023192,111680.0,111670.0,0.61381472]
[1756303919083,0.2023192,111680.0,111670.0,1.13135392]
[1756303920477,0.2023192,111680.0,111670.0,1.99903392]
[1756303920678,0.2023192,111680.0,111670.0,1.48149472]
[1756303921381,0.2023192,111680.0,111670.0,0.61381472]
[1756303921674,0.2023192,111680.0,111670.0,1.48141472]
[1756303924277,0.2023192,111680.0,111670.0,1.99895392]
[1756303924672,0.2023192,111680.0,111670.0,0.61381472]
[1756303924869,0.2023192,111680.0,111670.0,1.99883392]
[1756303925582,0.2023192,111680.0,111670.0,1.48129472]
[1756303925776,0.2023192,111680.0,111670.0,1.55400874]
[1756303925987,0.2023192,111680.0,111670.0,2.07154794]
[1756303926694,0.11279,111680.0,111670.0,2.07154794]
[1756303926884,0.2023192,111680.0,111670.0,2.07154794]
[1756303927272,0.11279,111680.0,111670.0,2.07154794]
[1756303927676,0.2023192,111680.0,111670.0,1.20406794]
[1756303927873,0.2023192,111680.0,111670.0,2.07114794]
[1756303929588,0.2023192,111680.0,111670.0,2.07114794]
[1756303929774,0.1396692,111680.0,111670.0,2.07114794]
[1756303929981,0.1396692,111680.0,111670.0,2.10978794]
[1756303930883,0.1396692,111680.0,111670.0,1.59224874]
[1756303931176,0.1396692,111680.0,111670.0,1.24270794]
[1756303931382,0.1396692,111680.0,111670.0,2.10946794]
[1756303932876,0.1202992,111680.0,111670.0,2.12073794]
[1756303934577,0.1202992,111680.0,111670.0,1.60319874]
[1756303934782,0.1202992,111680.0,111670.0,2.12073794]
[1756303937182,0.6801184,111680.0,111670.0,0.23576752]
[1756303937487,1.6557415,111680.0,111670.0,0.23576752]
[1756303937680,2.0257415,111680.0,111670.0,0.23576752]
[1756303937984,2.0357415,111680.0,111670.0,0.23576752]
[1756303938679,1.6557415,111680.0,111670.0,0.23576752]
[1756303938874,1.9657415,111680.0,111670.0,0.23576752]
[1756303939181,1.21456035,111680.0,111670.0,0.23576752]
[1756303939381,1.29040198,111680.0,111670.0,0.21771]
[1756303939687,0.0895452,111660.0,111650.0,0.01847789]
[1756303939875,0.96736798,111660.0,111650.0,0.05366789]
[1756303940190,1.57816798,111660.0,111650.0,0.05366789]
[1756303940988,1.0611452,111660.0,111650.0,0.03519]
[1756303941384,1.57816798,111660.0,111650.0,0.04119]
[1756303942091,2.44428798,111660.0,111650.0,0.04119]
[1756303942284,1.21736798,111660.0,111650.0,0.06686]
[1756303942486,1.3164252,111660.0,111650.0,0.08924]
[1756303942685,1.3164252,111660.0,111650.0,0.09224]
[1756303943088,1.3164252,111660.0,111650.0,0.08624]
[1756303943291,0.4523452,111660.0,111650.0,0.1757933]
[1756303943492,0.4523452,111660.0,111650.0,0.1727933]
[1756303943687,0.0935452,111660.0,111650.0,0.1727933]
[1756303943884,0.0935452,111660.0,111650.0,0.5335933]
[1756303945093,0.004,111660.0,111650.0,1.30061608]
[1756303945889,0.002,111660.0,111650.0,1.30061608]
[1756303946091,0.0915452,111660.0,111650.0,1.30061608]
[1756303946386,0.002,111660.0,111650.0,1.30061608]
[1756303947189,0.109474,111670.0,111650.0,1.21106278]
[1756303947395,0.109474,111670.0,111660.0,0.4503453]
[1756303947694,0.1094694,111670.0,111660.0,1.83324808]
[1756303947996,0.1094694,111670.0,111660.0,1.88571808]
[1756303948295,0.0895372,111670.0,111660.0,1.88571808]
[1756303948490,0.0895372,111670.0,111660.0,1.3686953]
[1756303948684,0.0895372,111670.0,111660.0,0.5380053]
[1756303948884,0.1250172,111670.0,111660.0,0.08766]
[1756303949194,0.89203998,111670.0,111660.0,0.08766]
[1756303950596,0.89203998,111670.0,111660.0,0.08866]
[1756303951291,0.3750172,111670.0,111660.0,0.08866]
[1756303951496,0.1250172,111670.0,111660.0,0.69522798]
[1756303951694,0.1250172,111670.0,111660.0,0.08866]
[1756303952589,0.1250172,111670.0,111660.0,0.1782052]
[1756303955097,0.1250172,111670.0,111660.0,0.1792052]
[1756303955898,0.1250172,111670.0,111660.0,1.05702798]
[1756303956498,0.1250172,111670.0,111660.0,1.05602798]
[1756303956704,0.1250172,111670.0,111660.0,1.05702798]
[1756303957492,0.03548,111670.0,111660.0,1.30702798]
[1756303958298,0.136815,111680.0,111670.0,0.0895372]
[1756303958495,0.04728,111680.0,111670.0,1.83247998]
[1756303958692,0.04728,111680.0,111670.0,2.08247998]
[1756303958892,0.17225873,111690.0,111670.0,2.08247998]
[1756303958893,0.06298,111690.0,111670.0,2.08247998]
[1756303959088,0.005,111700.0,111680.0,0.98564558]
[1756303959295,0.0945131,111700.0,111690.0,1.83238388]
[1756303959598,0.08643,111700.0,111690.0,1.83238388]
[1756303959802,0.08643,111700.0,111690.0,1.3548311]
[1756303960003,0.08643,111700.0,111690.0,2.12185388]
[1756303960196,0.08643,111700.0,111690.0,1.25681388]
[1756303960397,0.08643,111700.0,111690.0,2.12181388]
[1756303960599,0.1759431,111700.0,111690.0,1.25681388]
[1756303960799,0.1759431,111700.0,111690.0,2.12173388]
[1756303961000,0.1769431,111700.0,111690.0,2.12173388]
[1756303961195,0.1799431,111700.0,111690.0,2.12173388]
[1756303961805,0.1799431,111700.0,111690.0,2.12165388]
[1756303962406,0.1789431,111700.0,111690.0,2.12165388]
[1756303963110,0.1789431,111700.0,111690.0,2.15301388]
[1756303963709,0.1779431,111700.0,111690.0,2.15301388]
[1756303963909,0.1759431,111700.0,111690.0,2.15501388]
[1756303964409,0.1759431,111700.0,111690.0,0.4824]
[1756303964610,1.30376588,111700.0,111690.0,0.1206]
[1756303965404,0.7867431,111700.0,111690.0,0.1206]
[1756303965601,1.30376588,111700.0,111690.0,0.1206]
[1756303965805,0.7867431,111700.0,111690.0,0.1206]
[1756303966007,0.1759431,111700.0,111690.0,0.72714388]
[1756303966210,0.1759431,111700.0,111690.0,1.08794388]
[1756303966713,0.1759431,111700.0,111690.0,1.08894388]
[1756303967304,0.1759431,111700.0,111690.0,1.95334388]
[1756303969812,0.1759431,111700.0,111690.0,1.08894388]
[1756303970208,0.1759431,111700.0,111690.0,0.98576]
[1756303970413,0.1759431,111700.0,111690.0,1.95310388]
[1756303972413,0.005,111710.0,111690.0,2.72012666]
[1756303972612,0.2017598,111720.0,111710.0,0.0895051]
[1756303972820,0.2017598,111720.0,111710.0,0.98566349]
[1756303973316,0.11226,111720.0,111710.0,0.98566349]
[1756303973617,0.2017571,111720.0,111710.0,1.84958349]
[1756303973819,0.2017571,111720.0,111710.0,1.84954349]
[1756303974114,0.2017571,111720.0,111710.0,0.46864071]
[1756303974315,0.2017571,111720.0,111710.0,0.98566349]
[1756303974514,0.2017571,111720.0,111710.0,1.84950349]
[1756303975612,0.11226,111720.0,111710.0,1.84950349]
[1756303975814,0.11426,111720.0,111710.0,1.84950349]
[1756303976216,0.02274,111720.0,111710.0,1.84950349]
[1756303976522,0.104489,111730.0,111720.0,0.0894971]
[1756303976820,0.104489,111730.0,111720.0,0.96731988]
[1756303977320,0.015,111730.0,111720.0,0.96731988]
[1756303977517,0.1044892,111730.0,111720.0,0.96731988]
[1756303977920,0.1044892,111730.0,111720.0,1.06173988]
[1756303978522,0.1054892,111730.0,111720.0,1.06173988]
[1756303979922,0.016,111730.0,111720.0,1.06173988]
[1756303980123,0.1054891,111730.0,111720.0,1.06173988]
[1756303980327,0.016,111730.0,111720.0,1.06173988]
[1756303980720,0.1433891,111730.0,111720.0,0.5447171]
[1756303981025,0.1685291,111730.0,111720.0,1.92505988]
[1756303981726,0.03903,111740.0,111720.0,2.17505988]
[1756303981921,0.03903,111740.0,111730.0,0.96731188]
[1756303982119,0.03903,111740.0,111730.0,0.98527942]
[1756303982325,0.08423,111750.0,111740.0,0.0894811]
[1756303982518,0.08423,111750.0,111740.0,1.83050388]
[1756303983324,0.1737034,111750.0,111740.0,1.83046388]
[1756303983724,0.08423,111750.0,111740.0,1.83046388]
[1756303984129,0.08423,111750.0,111740.0,1.3134411]
[1756303984329,0.08423,111750.0,111740.0,1.83046388]
[1756303984825,0.04825284,111770.0,111740.0,1.83046388]
[1756303985124,0.06417,111770.0,111760.0,0.87782278]
[1756303985426,0.06417,111770.0,111760.0,1.83028778]
[1756303986620,0.06717,111770.0,111760.0,1.83020778]
[1756303987527,0.06717,111770.0,111760.0,1.83951148]
[1756303987828,0.1566271,111770.0,111760.0,1.313185]
[1756303988020,0.1566271,111770.0,111760.0,0.96728778]
[1756303988221,0.06717,111770.0,111760.0,1.83016778]
[1756303988421,0.06417,111770.0,111760.0,1.83016778]
[1756303988727,0.06517,111770.0,111760.0,1.83016778]
[1756303989227,0.1546274,111770.0,111760.0,0.96728778]
[1756303989429,0.1546274,111770.0,111760.0,1.82996778]
[1756303989628,0.1546274,111770.0,111760.0,1.82996788]
[1756303989830,0.1546274,111770.0,111760.0,1.3369551]
[1756303990620,0.4638074,111770.0,111760.0,0.4109]
[1756303990824,0.98083018,111770.0,111760.0,0.0501]
[1756303991022,0.2138074,111770.0,111760.0,0.139565]
[1756303991323,0.2138074,111770.0,111760.0,0.4109]
[1756303991523,0.2138074,111770.0,111760.0,0.5003652]
[1756303991724,0.2138074,111770.0,111760.0,1.01738798]
[1756303992322,0.2138074,111770.0,111760.0,1.87994798]
[1756303992522,0.2138074,111770.0,111760.0,1.3629252]
[1756303993031,0.2138074,111770.0,111760.0,0.46582]
[1756303993334,0.98083018,111770.0,111760.0,0.9675]
[1756303993521,0.4638074,111770.0,111760.0,0.9675]
[1756303994235,0.4638074,111770.0,111760.0,0.46582]
[1756303994419,0.4638074,111770.0,111760.0,1.3283]
[1756303994624,0.4638074,111770.0,111760.0,1.32826]
[1756303995723,0.4638074,111770.0,111760.0,0.46582]
[1756303996028,0.4638074,111770.0,111760.0,0.10502]
[1756303996927,0.4638074,111770.0,111760.0,0.194485]
[1756303997128,0.4638074,111770.0,111760.0,0.555285]
[1756303998233,0.4638074,111770.0,111760.0,0.46582]
[1756303999325,0.4638074,111770.0,111760.0,0.5552851]
[1756303999526,0.2138071,111770.0,111760.0,1.07230788]
[1756304000321,0.2138071,111770.0,111760.0,1.32230788]
[1756304000521,0.12435,111770.0,111760.0,1.32230788]
[1756304000727,0.2138071,111770.0,111760.0,1.32230788]
[1756304001329,0.12435,111770.0,111760.0,1.32230788]
[1756304001744,0.2138071,111770.0,111760.0,1.32230788]
[1756304002136,0.12435,111770.0,111760.0,1.32230788]
[1756304002435,0.2138071,111770.0,111760.0,0.8052851]
[1756304002624,0.2138071,111770.0,111760.0,2.18434788]
[1756304003327,0.2138071,111770.0,111760.0,1.32230788]
[1756304003630,0.2138071,111770.0,111760.0,2.18434788]
[1756304004831,0.12435,111770.0,111760.0,2.18434788]
[1756304005331,0.005,111780.0,111770.0,0.0894574]
[1756304005534,0.005,111780.0,111770.0,0.98540011]
[1756304006235,0.005,111780.0,111770.0,1.23540011]
[1756304006440,0.07214,111790.0,111780.0,0.0894494]
[1756304006629,0.07214,111790.0,111780.0,1.82911218]
[1756304007735,0.03853,111790.0,111780.0,1.82907218]
[1756304007935,0.03853,111790.0,111780.0,1.88585218]
[1756304008131,0.03853,111790.0,111780.0,1.92265218]
[1756304008336,0.1279714,111790.0,111780.0,1.92265218]
[1756304009140,0.1289714,111790.0,111780.0,1.92265218]
[1756304009338,0.03953,111790.0,111780.0,1.92265218]
[1756304010132,0.04153,111790.0,111780.0,1.92265218]
[1756304012537,0.04153,111790.0,111780.0,1.06089218]
[1756304012838,0.1660011,111790.0,111780.0,0.45442]
[1756304013132,0.2124011,111790.0,111780.0,0.46042]
[1756304013327,0.2124011,111790.0,111780.0,1.32186]
[1756304013533,0.12296,111790.0,111780.0,1.92833188]
[1756304015029,0.12296,111790.0,111780.0,1.92533188]
[1756304015228,0.12296,111790.0,111780.0,1.4103091]
[1756304015434,0.12296,111790.0,111780.0,1.92733188]
[1756304015838,0.12296,111790.0,111780.0,1.92717188]
[1756304016035,0.12296,111790.0,111780.0,1.06589188]
[1756304016239,0.212401,111790.0,111780.0,0.5468691]
[1756304016439,0.212401,111790.0,111780.0,1.4101491]
[1756304016839,0.212401,111790.0,111780.0,0.45942]
[1756304017239,0.212401,111790.0,111780.0,1.31866]
[1756304017432,0.212401,111790.0,111780.0,1.4080694]
[1756304017829,0.99924736,111790.0,111780.0,0.09662]
[1756304018036,1.36004736,111790.0,111780.0,0.09662]
[1756304018234,0.48222458,111790.0,111780.0,0.09662]
[1756304018533,0.23222458,111790.0,111780.0,0.09662]
[1756304018728,0.23222458,111790.0,111780.0,0.09762]
[1756304018933,0.23222458,111790.0,111780.0,1.06489208]
[1756304019343,0.23222458,111790.0,111780.0,1.06389208]
[1756304019536,0.23222458,111790.0,111780.0,0.5468693]
[1756304019732,0.20725458,111790.0,111780.0,0.5468693]
[1756304019942,0.27275458,111790.0,111780.0,1.12933208]
[1756304020135,0.27275458,111790.0,111780.0,0.6123093]
[1756304020442,0.27275458,111790.0,111780.0,0.52186]
[1756304020639,0.27275458,111790.0,111780.0,0.16106]
[1756304020836,1.40057736,111790.0,111780.0,0.16106]
[1756304021238,0.88355458,111790.0,111780.0,0.16106]
[1756304021434,1.40057736,111790.0,111780.0,0.15906]
[1756304021743,1.40057736,111790.0,111780.0,0.2485094]
[1756304021744,1.03977736,111790.0,111780.0,0.2485094]
[1756304021938,0.27275458,111790.0,111780.0,0.6093094]
[1756304022540,0.13285062,111790.0,111780.0,0.6093094]
[1756304022943,0.13285062,111790.0,111780.0,0.6624994]
[1756304023840,0.15871062,111790.0,111780.0,0.6624994]
[1756304024045,0.15871062,111790.0,111780.0,1.5234994]
[1756304024346,0.15871062,111790.0,111780.0,1.07321]
[1756304024547,0.6757334,111790.0,111780.0,0.21225]
[1756304024739,0.9257334,111790.0,111780.0,0.21225]
[1756304025046,1.2865334,111790.0,111780.0,0.21225]
[1756304025238,0.9257334,111790.0,111780.0,0.21325]
[1756304025439,0.40871062,111790.0,111780.0,0.21325]
[1756304026549,0.9257334,111790.0,111780.0,0.21325]
[1756304026843,1.2865334,111790.0,111780.0,0.21325]
[1756304028345,2.16729439,111790.0,111780.0,0.21325]
[1756304028544,2.16729439,111790.0,111780.0,0.21225]
[1756304029248,2.1473334,111790.0,111780.0,0.21225]
[1756304030548,1.2865334,111790.0,111780.0,0.21225]
[1756304030743,2.1472534,111790.0,111780.0,0.21225]
[1756304032452,1.2865334,111790.0,111780.0,0.21225]
[1756304032649,2.1472534,111790.0,111780.0,0.21225]
[1756304033150,1.38023062,111790.0,111780.0,0.21225]
[1756304033446,0.0894573,111770.0,111760.0,0.11144659]
[1756304033651,0.0894653,111760.0,111750.0,0.0177702]
[1756304033845,0.96728808,111760.0,111750.0,0.0177702]
[1756304034045,0.97658357,111760.0,111750.0,0.0177702]
[1756304034654,0.97558357,111760.0,111750.0,0.0177702]
[1756304034949,0.61478357,111760.0,111750.0,0.0177702]
[1756304035743,0.61278357,111760.0,111750.0,0.0177702]
[1756304036650,0.61278357,111760.0,111750.0,0.0227702]
[1756304036842,0.61278357,111760.0,111750.0,0.0864302]
[1756304037038,0.09576079,111760.0,111750.0,0.0864302]
[1756304037247,0.61278357,111760.0,111750.0,0.0864302]
[1756304037843,0.66684357,111760.0,111750.0,0.0864302]
[1756304038044,0.14982079,111760.0,111750.0,0.1076002]
[1756304038549,0.66684357,111760.0,111750.0,0.1076002]
[1756304038748,1.02764357,111760.0,111750.0,0.08983]
[1756304039255,1.88808357,111760.0,111750.0,0.08983]
[1756304039657,2.13808357,111760.0,111750.0,0.08983]
[1756304040049,0.0894732,111750.0,111740.0,0.12434]
[1756304040253,1.82431876,111750.0,111730.0,0.11144659]
[1756304040459,0.0894972,111720.0,111710.0,0.10286659]
[1756304040652,0.60651998,111720.0,111710.0,0.16652659]
[1756304040852,0.60651998,111720.0,111710.0,0.06366]
[1756304041453,0.0894972,111720.0,111710.0,0.5351354]
[1756304041655,0.0894972,111720.0,111710.0,0.44563]
[1756304041861,0.0894972,111720.0,111710.0,1.23097519]
[1756304042359,0.0874972,111720.0,111710.0,1.35531519]
[1756304042966,0.0884972,111720.0,111710.0,0.83829241]
[1756304043263,0.0884972,111720.0,111710.0,0.92779761]
[1756304043463,0.0894972,111720.0,111710.0,0.92779761]
[1756304043864,0.0894972,111720.0,111710.0,0.83829241]
[1756304044564,0.0894972,111720.0,111710.0,0.92779761]
[1756304046169,0.002,111720.0,111710.0,2.30522039]
[1756304046560,0.089486,111740.0,111730.0,0.0894891]
[1756304046759,0.089486,111740.0,111730.0,0.96731188]
[1756304047266,0.089486,111740.0,111730.0,0.3608]
[1756304047571,0.0894892,111730.0,111720.0,1.310654]
[1756304048167,0.0894892,111730.0,111720.0,1.82767678]
[1756304048863,0.0894892,111730.0,111720.0,0.96731678]
[1756304049167,0.0894972,111720.0,111710.0,0.59029241]
[1756304049371,0.60651998,111720.0,111710.0,0.21017]
[1756304049672,1.21731998,111720.0,111710.0,0.20917]
[1756304049874,1.22853998,111720.0,111710.0,0.20917]
[1756304050065,1.58853998,111720.0,111710.0,0.20917]
[1756304050265,1.22853998,111720.0,111710.0,0.20917]
[1756304050667,1.22953998,111720.0,111710.0,0.20917]
[1756304051167,0.98053998,111720.0,111710.0,0.20917]
[1756304051376,1.84081998,111720.0,111710.0,0.20917]
[1756304052977,0.1375972,111720.0,111710.0,0.15598]
[1756304053471,0.1375972,111720.0,111710.0,1.12330798]
[1756304053769,0.1375972,111720.0,111710.0,1.37330798]
[1756304054274,0.0481,111720.0,111710.0,1.37330798]
[1756304054474,0.1375972,111720.0,111710.0,0.8562852]
[1756304054771,0.0481,111720.0,111710.0,1.7165252]
[1756304054973,0.1375972,111720.0,111710.0,1.37330798]
[1756304055174,0.1375972,111720.0,111710.0,1.7164852]
[1756304056268,0.01956418,111730.0,111720.0,0.0894972]
[1756304056475,0.01956418,111730.0,111720.0,0.96731998]
[1756304056971,0.10905328,111730.0,111720.0,0.96731998]
[1756304057176,0.01956418,111730.0,111720.0,0.96731998]
[1756304057578,0.02156418,111730.0,111720.0,0.96731998]
[1756304057775,0.0894859,111740.0,111730.0,0.0894891]
[1756304058077,0.0894859,111740.0,111730.0,1.82739188]
[1756304058478,0.0894859,111740.0,111730.0,1.3103691]
[1756304058672,0.0894859,111740.0,111730.0,0.4502891]
[1756304058866,0.0894891,111730.0,111720.0,1.3103371]
[1756304059276,0.60651188,111730.0,111720.0,0.3608]
[1756304059471,0.0894971,111720.0,111710.0,1.37682]
[1756304059870,0.0894971,111720.0,111710.0,1.4663252]
[1756304060071,0.0894971,111720.0,111710.0,0.6062852]
[1756304060476,0.0894971,111720.0,111710.0,0.6062855]
[1756304060671,0.0894971,111720.0,111710.0,1.4662855]
[1756304060866,0.0894944,111730.0,111720.0,0.0894959]
[1756304061273,0.0894944,111730.0,111720.0,0.4502959]
[1756304061481,0.1169471,111740.0,111730.0,0.0894895]
[1756304061778,0.1169471,111740.0,111730.0,0.4502895]
[1756304061977,0.1169471,111740.0,111730.0,1.3102495]
[1756304062379,0.1169471,111740.0,111730.0,0.3608]
[1756304062580,0.0894892,111730.0,111720.0,1.3102164]
[1756304063578,0.0894972,111720.0,111710.0,0.6062826]
[1756304063778,0.0894972,111720.0,111710.0,1.4662026]
[1756304063975,0.0894972,111720.0,111710.0,1.4661626]
[1756304065175,0.60651998,111720.0,111710.0,0.51678]
[1756304066079,0.0894972,111720.0,111710.0,0.51778]
[1756304066578,0.0894972,111720.0,111710.0,0.5409]
[1756304067377,0.0894972,111720.0,111710.0,0.6304052]
[1756304067980,0.1292872,111720.0,111710.0,0.6324452]
[1756304068382,0.03979,111720.0,111710.0,1.14946798]
[1756304068580,0.03979,111720.0,111710.0,1.39946798]
[1756304068882,0.1466546,111730.0,111720.0,0.0894972]
[1756304069083,0.1466546,111730.0,111720.0,1.82699998]
[1756304069570,0.1466546,111730.0,111720.0,1.3099772]
[1756304069975,0.1466546,111730.0,111720.0,0.4502972]
[1756304070181,0.1466546,111730.0,111720.0,1.22444]
[1756304070383,0.1466546,111730.0,111720.0,1.3139372]
[1756304071182,0.1466546,111730.0,111720.0,1.3129372]
[1756304071385,0.1466546,111730.0,111720.0,1.22344]
[1756304071585,0.1466546,111730.0,111720.0,0.3638]
[1756304071782,1.27447738,111730.0,111720.0,0.003]
[1756304072083,2.13403738,111730.0,111720.0,0.003]
[1756304073283,2.13403738,111730.0,111720.0,0.002]
[1756304073482,2.13403738,111730.0,111720.0,0.001]
[1756304073982,0.0894973,111720.0,111710.0,0.18114]
[1756304074178,1.21732008,111720.0,111710.0,0.18114]
[1756304075790,1.21732008,111720.0,111710.0,0.18214]
[1756304076279,0.0894973,111720.0,111710.0,0.2716446]
[1756304078080,0.0894973,111720.0,111710.0,2.00882738]
[1756304078283,0.0894973,111720.0,111710.0,2.25882738]
[1756304078583,0.0894973,111720.0,111710.0,1.7418046]
[1756304078886,0.05716,111730.0,111720.0,0.0894968]
[1756304079084,0.05716,111730.0,111720.0,1.21731958]
[1756304079391,0.04750009,111740.0,111730.0,0.60651158]
[1756304079687,0.04750009,111740.0,111730.0,1.82663158]
[1756304079985,0.02004009,111740.0,111730.0,1.86718158]
[1756304080183,0.10952099,111740.0,111730.0,1.3501588]
[1756304080386,0.10952099,111740.0,111730.0,1.86718158]
[1756304080982,0.05900662,111750.0,111740.0,0.02745]
[1756304081489,0.05900662,111750.0,111740.0,0.4777308]
[1756304081490,0.08711662,111750.0,111740.0,0.4777308]
[1756304083089,0.08711662,111750.0,111740.0,0.5103108]
[1756304083285,0.08711662,111750.0,111740.0,0.42083]
[1756304084079,0.6645394,111750.0,111740.0,0.44445]
[1756304084284,1.0253394,111750.0,111740.0,0.08465]
[1756304084481,1.0263394,111750.0,111740.0,0.08465]
[1756304085089,1.2763394,111750.0,111740.0,0.08465]
[1756304085392,1.2753394,111750.0,111740.0,0.08465]
[1756304085587,1.2763394,111750.0,111740.0,0.08465]
[1756304086087,2.15499347,111750.0,111740.0,0.08465]
[1756304086487,0.77897069,111750.0,111740.0,0.08465]
[1756304086689,2.15487347,111750.0,111740.0,0.08465]
[1756304086886,2.15487347,111750.0,111740.0,0.08365]
[1756304087689,2.15387347,111750.0,111740.0,0.08365]
[1756304087886,2.15487347,111750.0,111740.0,0.08365]
[1756304088585,1.29599347,111750.0,111740.0,0.08365]
[1756304088779,1.38777069,111750.0,111740.0,0.08365]
[1756304088985,1.02697069,111750.0,111740.0,0.08365]
[1756304089289,1.38777069,111750.0,111740.0,0.08365]
[1756304090490,0.52897069,111750.0,111740.0,0.08365]
[1756304090689,1.38769069,111750.0,111740.0,0.08365]
[1756304090890,1.90471347,111750.0,111740.0,0.08365]
[1756304091291,1.90371347,111750.0,111740.0,0.08365]
[1756304092393,1.90471347,111750.0,111740.0,0.08365]
[1756304094994,0.0894805,111740.0,111730.0,0.04055]
[1756304095297,0.96730328,111740.0,111730.0,0.0157905]
[1756304095596,1.21730328,111740.0,111730.0,0.0157905]
[1756304095985,0.60650328,111740.0,111730.0,0.0432405]
[1756304096189,1.82578328,111740.0,111730.0,0.0432405]
[1756304096697,1.97458328,111740.0,111730.0,0.0442405]
[1756304097895,2.06004328,111740.0,111730.0,0.0442405]
[1756304098801,1.5429405,111740.0,111730.0,0.0835905]
[1756304099098,2.05996328,111740.0,111730.0,0.0835905]
[1756304100399,0.0894886,111730.0,111720.0,0.03258]
[1756304100600,0.96731138,111730.0,111720.0,0.03258]
[1756304101291,1.82559138,111730.0,111720.0,0.03258]
[1756304101596,0.0894886,111730.0,111720.0,0.123]
[1756304101994,0.0894886,111730.0,111720.0,0.125]
[1756304102390,0.0894886,111730.0,111720.0,0.16555]
[1756304102893,0.96731138,111730.0,111720.0,0.16555]
[1756304103399,0.4502886,111730.0,111720.0,0.16555]
[1756304103600,0.96731138,111730.0,111720.0,0.16555]
[1756304105401,1.21731138,111730.0,111720.0,0.16555]
[1756304105598,0.0894966,111720.0,111690.0,0.16058001]
[1756304105800,0.0895207,111690.0,111670.0,0.56743545]
[1756304106099,0.60655148,111680.0,111670.0,0.3608]
[1756304106296,0.60655148,111680.0,111670.0,0.4777867]
[1756304106496,0.0895287,111680.0,111670.0,0.38825]
[1756304106699,0.0895287,111680.0,111670.0,0.4777867]
[1756304106894,0.0895287,111680.0,111670.0,0.7277867]
[1756304107100,0.0895287,111680.0,111670.0,0.63825]
[1756304107302,0.0895287,111680.0,111670.0,0.7277867]
[1756304107495,0.61541569,111690.0,111680.0,0.1300787]
[1756304107701,0.09839291,111690.0,111680.0,0.10074]
[1756304107902,0.0895242,111690.0,111680.0,0.10074]
[1756304108300,0.0895242,111690.0,111680.0,0.1902687]
[1756304108505,0.0895242,111690.0,111680.0,0.10074]
[1756304108806,0.0865242,111690.0,111680.0,0.10074]
[1756304109503,0.0865242,111690.0,111680.0,0.10274]
[1756304109703,0.0865242,111690.0,111680.0,0.10474]
[1756304109902,0.1559742,111690.0,111680.0,0.10474]
[1756304110513,0.1559742,111690.0,111680.0,0.1942687]
[1756304110898,0.1559742,111690.0,111680.0,1.32209148]
[1756304111498,0.1559742,111690.0,111680.0,0.8050687]
[1756304111805,0.1559742,111690.0,111680.0,0.35474]
[1756304112006,0.67299698,111690.0,111680.0,0.10474]
[1756304112399,0.1559742,111690.0,111680.0,0.10474]
[1756304112600,0.1559742,111690.0,111680.0,0.5550687]
[1756304113000,0.1929942,111690.0,111680.0,0.5920687]
[1756304113503,0.1929942,111690.0,111680.0,0.50254]
[1756304113709,0.71001698,111690.0,111680.0,0.14174]